bitfinex/quotes_BTCUSD_20250614
["timestamp","ask_amount","ask_price","bid_price","bid_amount"]
[1749867578719,0.0779966,105600.0,105590.0,0.5109458]
[1749867578934,0.06952727,105600.0,105590.0,0.5109458]
[1749867579397,0.06952727,105600.0,105590.0,0.50209009]
[1749867579613,0.06952727,105600.0,105590.0,0.5109458]
[1749867579876,0.06952727,105600.0,105590.0,0.50209009]
[1749867580097,0.06005794,105600.0,105590.0,0.5109458]
[1749867580325,0.06952718,105600.0,105590.0,0.50209009]
[1749867580550,0.06952718,105600.0,105590.0,0.5109458]
[1749867580772,0.07899651,105600.0,105590.0,0.51094545]
[1749867580975,0.07899651,105600.0,105590.0,0.50430375]
[1749867581178,0.07899651,105600.0,105590.0,0.50208895]
[1749867581378,0.06005794,105600.0,105590.0,0.51094404]
[1749867581590,0.06952709,105600.0,105590.0,0.51094404]
[1749867581802,0.06005794,105600.0,105590.0,0.5043026]
[1749867582020,0.06005794,105600.0,105590.0,0.48659212]
[1749867582233,0.06005794,105600.0,105590.0,0.51094398]
[1749867582466,0.05058888,105600.0,105590.0,0.49323254]
[1749867582685,0.06005794,105600.0,105590.0,0.50208712]
[1749867582910,0.06005794,105600.0,105590.0,0.48437783]
[1749867583144,0.06005794,105600.0,105590.0,0.4843778]
[1749867583348,0.06005794,105600.0,105590.0,0.50430055]
[1749867583555,0.05058888,105600.0,105590.0,0.50430055]
[1749867583762,0.06005794,105600.0,105590.0,0.48437779]
[1749867583997,0.06005794,105600.0,105590.0,0.51094066]
[1749867584203,0.06005794,105600.0,105590.0,0.49323192]
[1749867584399,0.06005794,105600.0,105590.0,0.49544542]
[1749867584763,0.06005794,105600.0,105590.0,0.48659116]
[1749867584958,0.06005794,105600.0,105590.0,0.47773689]
[1749867585168,0.06005794,105600.0,105590.0,0.50208611]
[1749867585376,0.06952727,105600.0,105590.0,0.43268344]
[1749867585582,0.06910218,105600.0,105590.0,0.4437975]
[1749867585783,0.06910218,105600.0,105590.0,0.45045552]
[1749867585961,0.06910218,105600.0,105590.0,0.42604275]
[1749867586191,0.06910218,105600.0,105590.0,0.49865368]
[1749867586402,0.06910218,105600.0,105590.0,0.51640829]
[1749867586622,0.06910218,105600.0,105590.0,0.51640828]
[1749867586831,0.06910218,105600.0,105590.0,0.49199565]
[1749867587083,0.07857169,105600.0,105590.0,0.50975028]
[1749867587310,0.24945277,105600.0,105590.0,0.02441261]
[1749867587529,0.24945277,105600.0,105590.0,0.17021538]
[1749867587752,0.28385277,105600.0,105590.0,0.18797266]
[1749867588184,0.28385277,105600.0,105590.0,0.18795437]
[1749867588427,0.28385277,105600.0,105590.0,0.18790161]
[1749867588662,5.22160777,105600.0,105590.0,0.03322139]
[1749867588896,5.22160777,105600.0,105590.0,0.18790215]
[1749867589124,5.22160777,105600.0,105590.0,0.18790227]
[1749867589322,5.22160777,105600.0,105590.0,0.18125781]
[1749867589556,5.22160777,105600.0,105590.0,0.18790219]
[1749867589768,5.22160777,105600.0,105590.0,0.16132444]
[1749867589973,5.22160777,105600.0,105590.0,0.1879022]
[1749867590177,5.22160777,105600.0,105590.0,0.18125776]
[1749867590377,5.22160777,105600.0,105590.0,0.17018369]
[1749867590581,5.22160777,105600.0,105590.0,0.18790217]
[1749867590785,5.22160777,105600.0,105590.0,0.16353894]
[1749867590989,5.22160777,105600.0,105590.0,0.17239788]
[1749867591218,5.22160777,105600.0,105590.0,0.17904204]
[1749867591426,5.22160777,105600.0,105590.0,0.18790114]
[1749867591611,5.22160777,105600.0,105590.0,0.18125688]
[1749867591750,5.22160777,105600.0,105590.0,0.17018277]
[1749867591953,5.22160777,105600.0,105590.0,0.18125602]
[1749867592156,5.22160777,105600.0,105590.0,0.18768769]
[1749867592351,5.22160777,105600.0,105590.0,0.02436135]
[1749867592588,5.22160777,105600.0,105590.0,0.01771733]
[1749867592792,0.20835215,105590.0,105580.0,0.40692338]
[1749867592990,0.20835215,105590.0,105580.0,0.43349381]
[1749867593210,0.20835215,105590.0,105580.0,0.44013582]
[1749867593408,0.20835215,105590.0,105580.0,0.42463666]
[1749867593600,0.20835215,105590.0,105580.0,0.40692338]
[1749867593825,0.20835215,105590.0,105580.0,0.4224225]
[1749867594035,0.20835215,105590.0,105580.0,0.41356585]
[1749867594173,0.20835215,105590.0,105580.0,0.44013501]
[1749867594375,0.20835215,105590.0,105580.0,0.41392338]
[1749867594575,0.20835242,105590.0,105580.0,0.43097994]
[1749867594796,0.20835242,105590.0,105580.0,0.4309796]
[1749867595048,0.20835242,105590.0,105580.0,0.43676566]
[1749867595258,0.20835242,105590.0,105580.0,0.44623679]
[1749867595451,0.20835242,105590.0,105580.0,0.44845054]
[1749867595664,0.20835242,105590.0,105580.0,0.45509094]
[1749867596002,0.20835242,105590.0,105580.0,0.44623559]
[1749867596206,0.20835242,105590.0,105580.0,0.45509087]
[1749867596742,0.20835242,105590.0,105580.0,0.45509089]
[1749867596945,0.20835242,105590.0,105580.0,0.45509043]
[1749867597123,0.20835242,105590.0,105580.0,0.45509034]
[1749867597347,0.20835242,105590.0,105580.0,0.45509005]
[1749867597563,0.20835242,105590.0,105580.0,0.44844856]
[1749867597714,0.19888237,105590.0,105580.0,0.44561877]
[1749867597930,0.19888237,105590.0,105580.0,0.45508999]
[1749867598121,0.19888237,105590.0,105580.0,0.44623467]
[1749867598328,0.19888237,105590.0,105580.0,0.44623283]
[1749867598528,0.19888237,105590.0,105580.0,0.45508649]
[1749867598724,0.19888237,105590.0,105580.0,0.44844583]
[1749867598905,0.19888237,105590.0,105580.0,0.44623235]
[1749867599430,0.19888237,105590.0,105580.0,0.45508564]
[1749867599829,0.19888237,105590.0,105580.0,0.45508534]
[1749867600031,0.20842501,105590.0,105580.0,0.45508453]
[1749867600200,0.20842501,105590.0,105580.0,0.45508498]
[1749867600396,0.20842501,105590.0,105580.0,0.45508499]
[1749867600626,0.20842501,105590.0,105580.0,0.43959109]
[1749867600964,0.20842501,105590.0,105580.0,0.43737766]
[1749867601247,0.19888237,105590.0,105580.0,0.43737747]
[1749867601455,0.19888237,105590.0,105580.0,0.44844442]
[1749867601659,0.19888237,105590.0,105580.0,0.4307373]
[1749867601861,0.19888237,105590.0,105580.0,0.44623103]
[1749867602095,0.19888237,105590.0,105580.0,0.45508456]
[1749867602295,0.19888237,105590.0,105580.0,0.43960004]
[1749867602483,0.19888237,105590.0,105580.0,0.44624365]
[1749867602734,0.19888237,105590.0,105580.0,0.44845493]
[1749867602891,0.19888237,105590.0,105580.0,0.45509717]
[1749867603091,0.19888237,105590.0,105580.0,0.45509449]
[1749867603417,0.19888237,105590.0,105580.0,0.45509156]
[1749867603610,0.19888237,105590.0,105580.0,0.43740157]
[1749867603814,0.19888237,105590.0,105580.0,0.44687193]
[1749867604015,0.19888237,105590.0,105580.0,0.46460572]
[1749867604193,0.19888237,105590.0,105580.0,0.45573867]
[1749867604430,0.19888237,105590.0,105580.0,0.46460536]
[1749867604632,0.19888237,105590.0,105580.0,0.46460437]
[1749867605041,0.22951393,105600.0,105590.0,0.23388246]
[1749867605240,0.24845304,105600.0,105590.0,0.27660142]
[1749867605446,0.06852835,105600.0,105590.0,0.27942077]
[1749867605729,0.06852835,105600.0,105590.0,0.28606979]
[1749867606118,0.06852835,105600.0,105590.0,0.28606977]
[1749867606345,0.06852835,105600.0,105590.0,0.35651211]
[1749867606478,0.06852835,105600.0,105590.0,0.35046693]
[1749867606899,0.06852835,105600.0,105590.0,0.36598992]
[1749867607121,0.06952835,105600.0,105590.0,0.35933895]
[1749867607438,0.06952835,105600.0,105590.0,0.33938596]
[1749867607690,0.06952835,105600.0,105590.0,0.35772425]
[1749867607892,0.06952835,105600.0,105590.0,0.37546027]
[1749867608029,0.06952835,105600.0,105590.0,0.34220527]
[1749867608228,0.06952835,105600.0,105590.0,0.3754603]
[1749867608668,0.06952835,105600.0,105590.0,0.35772428]
[1749867608875,0.06952835,105600.0,105590.0,0.37546016]
[1749867609255,0.06952835,105600.0,105590.0,0.37546021]
[1749867609454,0.07899804,105600.0,105590.0,0.35772411]
[1749867609824,0.07899804,105600.0,105590.0,0.37545996]
[1749867610023,0.07899804,105600.0,105590.0,0.37545985]
[1749867610272,0.07899804,105600.0,105590.0,0.36880854]
[1749867610494,0.07899804,105600.0,105590.0,0.34885607]
[1749867610714,0.07899804,105600.0,105590.0,0.37545955]
[1749867610924,0.07899804,105600.0,105590.0,0.3754598]
[1749867611138,0.07899804,105600.0,105590.0,0.35933868]
[1749867611351,0.07899804,105600.0,105590.0,0.36598928]
[1749867611587,0.07899804,105600.0,105590.0,0.36598948]
[1749867611865,0.26839197,105600.0,105590.0,0.36598919]
[1749867612040,0.26839197,105600.0,105590.0,0.36598917]
[1749867612241,0.26839197,105600.0,105590.0,0.27781142]
[1749867612455,0.26839197,105600.0,105590.0,0.29554678]
[1749867612720,0.26839197,105600.0,105590.0,0.27780673]
[1749867612969,0.26839197,105600.0,105590.0,0.26894372]
[1749867613215,0.26839197,105600.0,105590.0,0.29553225]
[1749867613414,0.26839197,105600.0,105590.0,0.27780294]
[1749867613672,0.26839197,105600.0,105590.0,0.28666578]
[1749867613893,0.26839197,105600.0,105590.0,0.28666579]
[1749867614093,0.26839197,105600.0,105590.0,0.29552863]
[1749867614287,0.26839197,105600.0,105590.0,0.28666579]
[1749867614520,0.26839197,105600.0,105590.0,0.2689401]
[1749867614719,0.26839197,105600.0,105590.0,0.29552863]
[1749867615232,0.24945286,105600.0,105590.0,0.27780294]
[1749867615444,0.12924429,105600.0,105590.0,0.28888116]
[1749867615654,0.1387138,105600.0,105590.0,0.27780195]
[1749867615882,0.1387138,105600.0,105590.0,0.28888039]
[1749867616092,0.1387138,105600.0,105590.0,0.26229297]
[1749867616297,0.1387138,105600.0,105590.0,0.27780238]
[1749867616499,0.1387138,105600.0,105590.0,0.27719505]
[1749867616710,0.1387138,105600.0,105590.0,0.26833251]
[1749867616921,0.1387138,105600.0,105590.0,0.27941086]
[1749867617167,0.1387138,105600.0,105590.0,0.26168559]
[1749867617415,0.1387138,105600.0,105590.0,0.28605793]
[1749867617892,0.1387138,105600.0,105590.0,0.26832982]
[1749867618079,0.1387138,105600.0,105590.0,0.27657742]
[1749867618321,0.1387138,105600.0,105590.0,0.24999771]
[1749867618507,0.1387138,105600.0,105590.0,0.2588576]
[1749867618746,0.1387138,105600.0,105590.0,0.27657742]
[1749867619185,0.1387138,105600.0,105590.0,0.27657743]
[1749867619371,0.1387138,105600.0,105590.0,0.26771753]
[1749867619636,0.1387138,105600.0,105590.0,0.24999767]
[1749867619847,0.1387138,105600.0,105590.0,0.24999795]
[1749867620054,0.1387138,105600.0,105590.0,0.26993375]
[1749867620288,0.12924429,105600.0,105590.0,0.27657932]
[1749867620500,0.12924429,105600.0,105590.0,0.26771904]
[1749867620707,0.12924429,105600.0,105590.0,0.26993413]
[1749867620890,0.12924429,105600.0,105590.0,0.25221323]
[1749867621130,0.12924429,105600.0,105590.0,0.24999811]
[1749867621339,0.12924429,105600.0,105590.0,0.27657945]
[1749867621565,0.12924429,105600.0,105590.0,0.24335278]
[1749867621772,0.12924429,105600.0,105590.0,0.27657943]
[1749867621980,0.12924429,105600.0,105590.0,0.2522132]
[1749867622201,0.12924429,105600.0,105590.0,0.26993405]
[1749867622410,0.12924429,105600.0,105590.0,0.26771894]
[1749867622624,0.12924429,105600.0,105590.0,0.27657936]
[1749867622837,0.12924429,105600.0,105590.0,0.26993405]
[1749867623042,0.12924429,105600.0,105590.0,0.26771895]
[1749867623247,0.12924429,105600.0,105590.0,0.27657937]
[1749867623478,0.12924429,105600.0,105590.0,0.25885852]
[1749867623702,0.12924429,105600.0,105590.0,0.26771947]
[1749867623919,0.12924429,105600.0,105590.0,0.33784409]
[1749867624132,0.12924429,105600.0,105590.0,0.33624123]
[1749867624340,0.12924429,105600.0,105590.0,0.28606213]
[1749867624557,0.12924429,105600.0,105590.0,0.27719839]
[1749867624776,0.12924429,105600.0,105590.0,0.27055035]
[1749867624987,0.12924429,105600.0,105590.0,0.26772729]
[1749867625192,0.12924429,105600.0,105590.0,0.2522162]
[1749867625461,0.12924429,105600.0,105590.0,0.27659066]
[1749867625678,0.12924429,105600.0,105590.0,0.26994226]
[1749867625884,0.12924429,105600.0,105590.0,0.25886247]
[1749867626088,0.12924429,105600.0,105590.0,0.27719414]
[1749867626300,0.12924429,105600.0,105590.0,0.2860552]
[1749867626523,0.12924429,105600.0,105590.0,0.26833067]
[1749867626773,0.12924429,105600.0,105590.0,0.26168443]
[1749867627025,0.12924429,105600.0,105590.0,0.25946891]
[1749867627309,0.08912429,105600.0,105590.0,0.28666001]
[1749867627513,0.12920429,105600.0,105590.0,0.26893908]
[1749867627782,0.12920429,105600.0,105590.0,0.28666013]
[1749867628015,0.12920429,105600.0,105590.0,0.27779943]
[1749867628257,0.12920429,105600.0,105590.0,0.29552015]
[1749867628472,0.12920429,105600.0,105590.0,0.26893887]
[1749867628681,0.12920429,105600.0,105590.0,0.2955196]
[1749867628895,0.12920429,105600.0,105590.0,0.28665936]
[1749867629099,0.12920429,105600.0,105590.0,0.2955196]
[1749867629940,0.12920429,105600.0,105590.0,0.27779911]
[1749867630175,0.12920429,105600.0,105590.0,0.2955196]
[1749867630385,0.12920429,105600.0,105590.0,0.28887442]
[1749867630592,0.12920429,105600.0,105590.0,0.27779911]
[1749867630803,0.12920429,105600.0,105590.0,0.2955196]
[1749867631009,0.12920429,105600.0,105590.0,0.34012496]
[1749867631427,0.12920429,105600.0,105590.0,0.33126472]
[1749867631636,0.12920429,105600.0,105590.0,0.28665936]
[1749867631843,0.12920429,105600.0,105590.0,0.28666714]
[1749867632053,0.12920429,105600.0,105590.0,0.29553021]
[1749867632262,0.12920429,105600.0,105590.0,0.29553005]
[1749867632464,0.12920429,105600.0,105590.0,0.29554254]
[1749867632668,0.12920429,105600.0,105590.0,0.28002806]
[1749867632874,0.12920429,105600.0,105590.0,0.29554561]
[1749867633084,0.12920429,105600.0,105590.0,0.28667843]
[1749867633265,0.12920429,105600.0,105590.0,0.30501584]
[1749867633502,0.12920429,105600.0,105590.0,0.29836555]
[1749867633703,0.12920429,105600.0,105590.0,0.45296555]
[1749867633908,0.12920429,105600.0,105590.0,0.45961628]
[1749867634114,0.12920429,105600.0,105590.0,0.42636392]
[1749867634321,0.12920429,105600.0,105590.0,0.45961642]
[1749867634968,0.12920429,105600.0,105590.0,0.42636392]
[1749867635176,0.12920429,105600.0,105590.0,0.44188175]
[1749867635387,0.12920429,105600.0,105590.0,0.43523125]
[1749867635604,0.12920429,105600.0,105590.0,0.43301451]
[1749867635816,0.12920429,105600.0,105590.0,0.4596169]
[1749867636032,0.12920429,105600.0,105590.0,0.4662675]
[1749867636247,0.12920429,105600.0,105590.0,0.4596169]
[1749867636671,0.12920429,105600.0,105590.0,0.44188152]
[1749867636876,0.12920429,105600.0,105590.0,0.44853162]
[1749867637109,0.12920429,105600.0,105590.0,0.44853152]
[1749867637365,0.12920429,105600.0,105590.0,0.44853135]
[1749867637652,0.12920429,105600.0,105590.0,0.44853084]
[1749867637913,0.12920429,105600.0,105590.0,0.53006043]
[1749867638146,0.12920429,105600.0,105590.0,0.46626405]
[1749867638349,0.07795786,105600.0,105590.0,0.46626464]
[1749867638551,0.07795786,105600.0,105590.0,0.45961376]
[1749867638760,0.07795786,105600.0,105590.0,0.44853048]
[1749867638963,0.07795786,105600.0,105590.0,0.46626338]
[1749867639165,0.07795786,105600.0,105590.0,0.45961342]
[1749867639367,0.07795786,105600.0,105590.0,0.46626337]
[1749867639571,0.07795786,105600.0,105590.0,0.46626336]
[1749867640202,0.07795786,105600.0,105590.0,0.46626337]
[1749867640607,0.07795786,105600.0,105590.0,0.46626336]
[1749867640789,0.07795786,105600.0,105590.0,0.45961341]
[1749867641023,0.07795786,105600.0,105590.0,0.46626336]
[1749867641434,0.07795786,105600.0,105590.0,0.45961341]
[1749867641640,0.07795786,105600.0,105590.0,0.46626336]
[1749867642060,0.07795786,105600.0,105590.0,0.46626337]
[1749867642488,0.07795786,105600.0,105590.0,0.45961342]
[1749867642697,0.26735179,105600.0,105590.0,0.4662689]
[1749867642904,0.26735179,105600.0,105590.0,0.46627522]
[1749867643111,0.26735179,105600.0,105590.0,0.45740546]
[1749867643316,0.26735179,105600.0,105590.0,0.4596229]
[1749867643525,0.26735179,105600.0,105590.0,0.46627522]
[1749867644152,0.26735179,105600.0,105590.0,0.4485357]
[1749867644364,0.26735179,105600.0,105590.0,0.45962292]
[1749867644575,0.26735179,105600.0,105590.0,0.46627524]
[1749867645225,0.26735179,105600.0,105590.0,0.46627523]
[1749867645454,0.26735179,105600.0,105590.0,0.4596196]
[1749867645672,0.26735179,105600.0,105590.0,0.53183952]
[1749867645904,0.26735179,105600.0,105590.0,0.51632033]
[1749867646118,0.26735179,105600.0,105590.0,0.53183952]
[1749867646325,0.07795786,105600.0,105590.0,0.50523474]
[1749867646505,0.07795786,105600.0,105590.0,0.53183863]
[1749867646954,0.07795786,105600.0,105590.0,0.51410272]
[1749867647376,0.07795786,105600.0,105590.0,0.53183903]
[1749867647584,0.06848817,105600.0,105590.0,0.53183904]
[1749867648707,0.06848817,105600.0,105590.0,0.51631987]
[1749867648919,0.05901857,105600.0,105590.0,0.53183933]
[1749867649130,0.06848808,105600.0,105590.0,0.53183933]
[1749867649331,0.06848808,105600.0,105590.0,0.53183929]
[1749867649556,0.06848808,105600.0,105590.0,0.53183915]
[1749867649764,0.07795768,105600.0,105590.0,0.53183918]
[1749867649915,0.07795768,105600.0,105590.0,0.5141029]
[1749867650101,0.07795768,105600.0,105590.0,0.45740054]
[1749867650305,0.07795768,105600.0,105590.0,0.46626868]
[1749867650569,0.07795768,105600.0,105590.0,0.43301316]
[1749867650776,0.07795768,105600.0,105590.0,0.4574005]
[1749867650982,0.07795768,105600.0,105590.0,0.46626864]
[1749867651186,0.07795768,105600.0,105590.0,0.45961755]
[1749867651361,0.07795768,105600.0,105590.0,0.46626864]
[1749867651591,0.07795768,105600.0,105590.0,0.43966425]
[1749867651796,0.07795768,105600.0,105590.0,0.4596175]
[1749867651998,0.07795768,105600.0,105590.0,0.44188127]
[1749867652228,0.07795768,105600.0,105590.0,0.46626859]
[1749867652458,0.04844961,105610.0,105600.0,0.24523268]
[1749867652670,0.09799796,105610.0,105600.0,0.28794947]
[1749867652887,0.11693475,105610.0,105600.0,0.25470174]
[1749867653092,0.11693475,105610.0,105600.0,0.263567]
[1749867653300,0.30631075,105610.0,105600.0,0.41816745]
[1749867653523,0.30631075,105610.0,105600.0,0.44254819]
[1749867653747,0.26623075,105610.0,105600.0,0.41816807]
[1749867653955,0.30631075,105610.0,105600.0,0.44254985]
[1749867654171,0.30631075,105610.0,105600.0,0.06349806]
[1749867654380,0.30631075,105610.0,105600.0,0.39684513]
[1749867654381,0.28737432,105610.0,105600.0,0.39684513]
[1749867654555,0.28737432,105610.0,105600.0,0.37537673]
[1749867654786,0.28737432,105610.0,105600.0,0.39284653]
[1749867654996,0.28737432,105610.0,105600.0,0.42309668]
[1749867655218,0.28737432,105610.0,105600.0,0.45755222]
[1749867655430,0.28737432,105610.0,105600.0,0.45755202]
[1749867655640,0.28737432,105610.0,105600.0,0.44868546]
[1749867655899,0.28737432,105610.0,105600.0,0.43981901]
[1749867656120,0.28737432,105610.0,105600.0,0.439819]
[1749867656327,0.04954745,105620.0,105610.0,0.25468069]
[1749867656532,0.04954727,105620.0,105610.0,0.26132738]
[1749867656745,0.04954727,105620.0,105610.0,0.26132695]
[1749867657169,0.05901472,105620.0,105610.0,0.26132695]
[1749867657377,0.04954718,105620.0,105610.0,0.35747617]
[1749867657603,0.04954718,105620.0,105610.0,0.35082991]
[1749867657818,0.00946718,105620.0,105610.0,0.35747593]
[1749867658029,0.04008,105620.0,105610.0,0.35747593]
[1749867658235,4.95668873,105630.0,105620.0,0.24479324]
[1749867658474,4.99724607,105630.0,105620.0,0.39935324]
[1749867658891,4.99724607,105630.0,105620.0,0.41546639]
[1749867659104,4.95716553,105630.0,105620.0,0.41546639]
[1749867659325,0.06895735,105630.0,105620.0,0.49984185]
[1749867659756,0.05949,105630.0,105620.0,0.52420909]
[1749867659938,0.07842355,105630.0,105620.0,0.51534788]
[1749867660409,0.00047734,105630.0,105620.0,0.51534788]
[1749867660612,0.05002354,105630.0,105620.0,0.51755872]
[1749867660799,0.05949,105630.0,105620.0,0.49762464]
[1749867660939,0.05949,105630.0,105620.0,0.51755662]
[1749867661139,0.05948992,105630.0,105620.0,0.51755662]
[1749867661589,0.01940992,105630.0,105620.0,0.5153399]
[1749867661801,0.05948992,105630.0,105620.0,0.51534386]
[1749867662000,0.05948992,105630.0,105620.0,0.51534393]
[1749867662226,0.06895638,105630.0,105620.0,0.49098064]
[1749867662423,0.05002354,105630.0,105620.0,0.50869951]
[1749867662742,0.05948992,105630.0,105620.0,0.5153443]
[1749867662976,0.06895647,105630.0,105620.0,0.5153443]
[1749867663157,0.06895647,105630.0,105620.0,0.51534392]
[1749867663376,0.06895647,105630.0,105620.0,0.51534385]
[1749867663628,0.06895647,105630.0,105620.0,0.51534388]
[1749867664540,0.06895647,105630.0,105620.0,0.49762516]
[1749867664738,0.06895647,105630.0,105620.0,0.49762504]
[1749867664950,0.06895647,105630.0,105620.0,0.49098064]
[1749867665173,0.06895647,105630.0,105620.0,0.51533821]
[1749867665403,0.05948992,105630.0,105620.0,0.49098064]
[1749867665606,0.06895638,105630.0,105620.0,0.5153373]
[1749867665832,0.06895638,105630.0,105620.0,0.51533679]
[1749867666034,0.06895638,105630.0,105620.0,0.51533677]
[1749867666239,0.06895638,105630.0,105620.0,0.50869316]
[1749867666444,0.06895638,105630.0,105620.0,0.49762284]
[1749867666647,0.06895638,105630.0,105620.0,0.51533466]
[1749867666847,0.06895638,105630.0,105620.0,0.51533463]
[1749867667062,0.06895638,105630.0,105620.0,0.50869262]
[1749867667279,0.07842293,105630.0,105620.0,0.49762263]
[1749867667481,0.05948992,105630.0,105620.0,0.51533461]
[1749867667688,0.05948992,105630.0,105620.0,0.50869262]
[1749867667869,0.05948992,105630.0,105620.0,0.51533461]
[1749867668068,0.05948992,105630.0,105620.0,0.49756931]
[1749867668267,0.05948992,105630.0,105620.0,0.51514537]
[1749867668478,0.05002354,105630.0,105620.0,0.50855752]
[1749867668709,0.05948992,105630.0,105620.0,0.50855742]
[1749867668915,0.05948992,105630.0,105620.0,0.49757198]
[1749867669120,0.05948992,105630.0,105620.0,0.51514889]
[1749867669326,0.05948992,105630.0,105620.0,0.51514934]
[1749867669737,0.05002354,105630.0,105620.0,0.51514978]
[1749867670167,0.06895638,105630.0,105620.0,0.51515188]
[1749867670373,0.05948983,105630.0,105620.0,0.51515188]
[1749867670579,0.05948992,105630.0,105620.0,0.51515202]
[1749867670781,0.05948992,105630.0,105620.0,0.49757292]
[1749867670988,0.05948992,105630.0,105620.0,0.49757355]
[1749867671171,0.05948992,105630.0,105620.0,0.51515468]
[1749867671437,0.05002354,105630.0,105620.0,0.51515473]
[1749867671647,0.05948992,105630.0,105620.0,0.49757358]
[1749867671853,0.05948992,105630.0,105620.0,0.5151548]
[1749867672274,0.07868692,105660.0,105650.0,0.05512961]
[1749867672481,0.07868692,105660.0,105650.0,0.44564109]
[1749867672482,0.10707808,105660.0,105650.0,0.44564109]
[1749867672699,0.10722128,105660.0,105650.0,0.44327505]
[1749867673122,0.11668533,105660.0,105650.0,0.44327505]
[1749867674197,0.10722128,105660.0,105650.0,0.44327505]
[1749867674404,0.10722137,105660.0,105650.0,0.44327505]
[1749867674612,0.10722128,105660.0,105650.0,0.44327505]
[1749867675125,0.10722128,105660.0,105650.0,0.4499176]
[1749867675342,0.10722128,105660.0,105650.0,0.44991761]
[1749867675540,0.11668533,105660.0,105650.0,0.44991761]
[1749867675750,0.11668524,105660.0,105650.0,0.46763122]
[1749867675961,0.03979406,105660.0,105650.0,0.46763086]
[1749867676194,0.03979406,105660.0,105650.0,0.46763038]
[1749867676409,0.05872126,105660.0,105650.0,0.46094711]
[1749867676626,0.05872126,105660.0,105650.0,0.46758869]
[1749867676832,0.06818513,105660.0,105650.0,0.29539698]
[1749867677043,0.06818513,105660.0,105650.0,0.44323505]
[1749867677242,0.06818513,105660.0,105650.0,0.4498768]
[1749867677471,0.06818513,105660.0,105650.0,0.45023505]
[1749867677677,0.06818513,105660.0,105650.0,0.45687681]
[1749867677879,0.07764918,105660.0,105650.0,0.45687681]
[1749867678082,0.07764918,105660.0,105650.0,0.47458805]
[1749867678294,0.06818513,105660.0,105650.0,0.48258774]
[1749867678961,0.07764918,105660.0,105650.0,0.4825879]
[1749867679140,0.07764918,105660.0,105650.0,0.48258833]
[1749867679339,0.07764918,105660.0,105650.0,0.48258785]
[1749867679548,0.07764918,105660.0,105650.0,0.48258801]
[1749867679726,0.07764918,105660.0,105650.0,0.48258803]
[1749867679927,0.07764918,105660.0,105650.0,0.48258809]
[1749867680131,0.07764918,105660.0,105650.0,0.47594635]
[1749867680331,0.06818513,105660.0,105650.0,0.45823505]
[1749867680552,0.07764918,105660.0,105650.0,0.47594607]
[1749867680756,0.03979406,105660.0,105650.0,0.57218784]
[1749867680962,0.03979406,105660.0,105650.0,0.57218677]
[1749867681146,0.03979406,105660.0,105650.0,0.89447681]
[1749867681355,0.07788813,105680.0,105670.0,0.25265765]
[1749867681576,0.07788813,105680.0,105670.0,0.4709274]
[1749867681801,0.07788813,105680.0,105670.0,0.47092726]
[1749867682010,0.06842579,105680.0,105670.0,0.47092726]
[1749867682210,0.02838579,105680.0,105670.0,0.47092705]
[1749867682453,0.03784813,105680.0,105670.0,0.47756595]
[1749867682640,0.04184813,105680.0,105670.0,0.47756586]
[1749867682803,0.05131065,105680.0,105670.0,0.48039024]
[1749867683010,0.05131065,105680.0,105670.0,0.48702881]
[1749867683225,0.23109949,105680.0,105670.0,0.45050304]
[1749867683451,0.2216375,105680.0,105670.0,0.44386419]
[1749867683670,0.2216375,105680.0,105670.0,0.4505031]
[1749867683891,0.2216375,105680.0,105670.0,0.45996607]
[1749867684128,0.20271308,105680.0,105670.0,0.37751387]
[1749867684363,0.20271308,105680.0,105670.0,0.37841048]
[1749867684594,0.20271308,105680.0,105670.0,0.38697702]
[1749867684824,0.20271308,105680.0,105670.0,0.38980131]
[1749867685047,0.20271308,105680.0,105670.0,0.39644009]
[1749867685283,0.20271308,105680.0,105670.0,0.38980132]
[1749867685503,0.20271308,105680.0,105670.0,0.39644009]
[1749867685723,0.20271308,105680.0,105670.0,0.38697703]
[1749867685949,0.20271308,105680.0,105670.0,0.39644007]
[1749867686166,0.20271308,105680.0,105670.0,0.37209792]
[1749867686439,0.20271308,105680.0,105670.0,0.40840142]
[1749867686672,0.20271308,105680.0,105670.0,0.41504039]
[1749867686880,0.20271308,105680.0,105670.0,0.41504082]
[1749867687087,0.20271308,105680.0,105670.0,0.26060082]
[1749867687303,0.20271308,105680.0,105670.0,0.39749684]
[1749867687536,0.20271308,105680.0,105670.0,0.39749683]
[1749867687748,0.20271308,105680.0,105670.0,0.39085792]
[1749867687961,0.20271308,105680.0,105670.0,0.39744325]
[1749867688175,0.20271308,105680.0,105670.0,0.39744327]
[1749867688386,0.20271308,105680.0,105670.0,0.39744328]
[1749867688593,0.20271308,105680.0,105670.0,0.39744333]
[1749867688820,0.20271308,105680.0,105670.0,0.38794027]
[1749867689035,0.20271308,105680.0,105670.0,0.39740324]
[1749867689253,0.20271308,105680.0,105670.0,0.39081783]
[1749867689473,0.20271308,105680.0,105670.0,0.39740324]
[1749867689689,0.20271308,105680.0,105670.0,0.39081783]
[1749867689902,0.20271308,105680.0,105670.0,0.39740323]
[1749867690157,0.20271308,105680.0,105670.0,0.36934027]
[1749867690384,0.21165056,105680.0,105670.0,0.00658541]
[1749867690639,5.16710556,105680.0,105670.0,0.16110541]
[1749867691055,5.16710556,105680.0,105670.0,0.16110576]
[1749867691474,5.16710556,105680.0,105670.0,0.15456]
[1749867691683,5.16710556,105680.0,105670.0,0.16114576]
[1749867691909,5.16710556,105680.0,105670.0,0.15456]
[1749867692131,5.16710556,105680.0,105670.0,0.16114576]
[1749867692546,5.16710556,105680.0,105670.0,0.15456]
[1749867693371,5.16710556,105680.0,105670.0,0.16126573]
[1749867694227,0.18926847,105670.0,105650.0,0.32980717]
[1749867694452,0.21767862,105660.0,105650.0,0.23299004]
[1749867694694,5.18596975,105660.0,105650.0,0.16130717]
[1749867694914,5.18596975,105660.0,105650.0,0.16130949]
[1749867695142,5.19563739,105660.0,105650.0,0.16130949]
[1749867695357,5.21463739,105660.0,105650.0,0.16130949]
[1749867695579,5.23253739,105660.0,105650.0,0.001]
[1749867696008,0.19876933,105650.0,105640.0,0.15468]
[1749867696214,0.18932222,105640.0,105630.0,0.32111902]
[1749867696427,5.13654324,105640.0,105630.0,0.35371016]
[1749867696663,5.13654324,105640.0,105630.0,0.36976886]
[1749867696872,5.13654324,105640.0,105630.0,0.36317689]
[1749867697282,5.13654324,105640.0,105630.0,0.21500975]
[1749867697486,5.13654324,105640.0,105630.0,0.20841689]
[1749867697690,5.13654324,105640.0,105630.0,0.36317689]
[1749867697898,5.13654324,105640.0,105630.0,0.36982406]
[1749867698098,5.13654324,105640.0,105630.0,0.38822406]
[1749867698308,5.13654324,105640.0,105630.0,0.39822406]
[1749867698526,5.13654324,105640.0,105630.0,0.38875735]
[1749867698726,5.13654324,105640.0,105630.0,0.40722407]
[1749867699363,5.13654324,105640.0,105630.0,0.40057689]
[1749867699562,5.13654324,105640.0,105630.0,0.04419039]
[1749867699779,5.13654324,105640.0,105630.0,0.1807106]
[1749867700203,5.13654324,105640.0,105630.0,0.1740632]
[1749867700411,5.13654324,105640.0,105630.0,0.18071066]
[1749867700621,5.13654324,105640.0,105630.0,0.19843723]